[Event "Titled Tuesday Blitz August 16 Late 2022"]
[White "Naroditsky, Daniel"]
[Black "Lenderman, Aleksandr"]
[WhiteFideId "2026961"]
[BlackFideId "2021285"]
[WhiteElo "2628"]
[BlackElo "2607"]
[Result "1/2-1/2"]
[Round "05"]
[TimeControl "180+1"]
[Date "2022.08.16"]
[WhiteClock "0:00:06"]
[BlackClock "0:00:05"]

1. e4 {[%clk 0:02:59]}  c6 {[%clk 0:01:33]} 2. d4 {[%clk 0:02:53]}  d5 {[%clk 0:01:33]} 3. f3 {[%clk 0:02:49]}  e6 {[%clk 0:01:28]} 4. Nc3 {[%clk 0:02:48]}  Nd7 {[%clk 0:01:27]} 5. Be3 {[%clk 0:02:34]}  Bb4 {[%clk 0:01:24]} 6. Bd3 {[%clk 0:02:31]}  dxe4 {[%clk 0:01:20]} 7. fxe4 {[%clk 0:02:30]}  e5 {[%clk 0:01:20]} 8. Nf3 {[%clk 0:02:28]}  exd4 {[%clk 0:01:19]} 9. Bxd4 {[%clk 0:02:29]}  Ngf6 {[%clk 0:01:17]} 10. O-O {[%clk 0:02:29]}  Bc5 {[%clk 0:01:15]} 11. Bc4 {[%clk 0:02:17]}  Bxd4+ {[%clk 0:01:09]} 12. Qxd4 {[%clk 0:02:18]}  Qb6 {[%clk 0:01:08]} 13. Rad1 {[%clk 0:02:06]}  Qxd4+ {[%clk 0:01:01]} 14. Rxd4 {[%clk 0:02:07]}  b5 {[%clk 0:00:38]} 15. Bb3 {[%clk 0:01:54]}  c5 {[%clk 0:00:37]} 16. Rd2 {[%clk 0:01:19]}  c4 {[%clk 0:00:23]} 17. Nxb5 {[%clk 0:01:19]}  cxb3 {[%clk 0:00:24]} 18. Nc7+ {[%clk 0:01:20]}  Ke7 {[%clk 0:00:24]} 19. Nxa8 {[%clk 0:01:20]}  Ba6 {[%clk 0:00:25]} 20. Ra1 {[%clk 0:00:54]}  Rxa8 {[%clk 0:00:22]} 21. axb3 {[%clk 0:00:55]}  Bb7 {[%clk 0:00:22]} 22. e5 {[%clk 0:00:47]}  Ne4 {[%clk 0:00:22]} 23. Re2 {[%clk 0:00:45]}  Nec5 {[%clk 0:00:20]} 24. Nd4 {[%clk 0:00:44]}  g6 {[%clk 0:00:20]} 25. Rd1 {[%clk 0:00:40]}  Ne6 {[%clk 0:00:19]} 26. c3 {[%clk 0:00:25]}  Nxd4 {[%clk 0:00:14]} 27. Rxd4 {[%clk 0:00:26]}  Nc5 {[%clk 0:00:12]} 28. b4 {[%clk 0:00:23]}  Ne6 {[%clk 0:00:12]} 29. Rd6 {[%clk 0:00:24]}  Rc8 {[%clk 0:00:08]} 30. Red2 {[%clk 0:00:23]}  Rc7 {[%clk 0:00:08]} 31. h4 {[%clk 0:00:19]}  Bc6 {[%clk 0:00:08]} 32. Rd1 {[%clk 0:00:12]}  h5 {[%clk 0:00:08]} 33. g3 {[%clk 0:00:11]}  Ng7 {[%clk 0:00:08]} 34. Kf2 {[%clk 0:00:11]}  Nf5 {[%clk 0:00:08]} 35. R6d2 {[%clk 0:00:11]}  Ke6 {[%clk 0:00:06]} 36. Re2 {[%clk 0:00:09]}  Bb5 {[%clk 0:00:06]} 37. Re4 {[%clk 0:00:08]}  Bc6 {[%clk 0:00:07]} 38. Re2 {[%clk 0:00:08]}  Bb5 {[%clk 0:00:07]} 39. Ree1 {[%clk 0:00:09]}  Bc6 {[%clk 0:00:06]} 40. b3 {[%clk 0:00:04]}  Nh6 {[%clk 0:00:06]} 41. Rd6+ {[%clk 0:00:02]}  Ke7 {[%clk 0:00:07]} 42. Kg1 {[%clk 0:00:02]}  Nf5 {[%clk 0:00:07]} 43. Rd3 {[%clk 0:00:02]}  Bd7 {[%clk 0:00:07]} 44. c4 {[%clk 0:00:02]}  Be6 {[%clk 0:00:08]} 45. b5 {[%clk 0:00:03]}  Rb7 {[%clk 0:00:06]} 46. Ra1 {[%clk 0:00:04]}  Ke8 {[%clk 0:00:06]} 47. Ra6 {[%clk 0:00:04]}  Ne7 {[%clk 0:00:06]} 48. Rd1 {[%clk 0:00:04]}  Nc8 {[%clk 0:00:06]} 49. Kf2 {[%clk 0:00:05]}  Rc7 {[%clk 0:00:05]} 50. Rda1 {[%clk 0:00:04]}  Rd7 {[%clk 0:00:05]} 51. Ke3 {[%clk 0:00:04]}  Bf5 {[%clk 0:00:06]} 52. Ke2 {[%clk 0:00:03]}  Rd3 {[%clk 0:00:05]} 53. Rc6 {[%clk 0:00:02]}  Rxb3 {[%clk 0:00:05]} 54. Rc7 {[%clk 0:00:02]}  Be6 {[%clk 0:00:04]} 55. Kd2 {[%clk 0:00:02]}  Rxg3 {[%clk 0:00:04]} 56. c5 {[%clk 0:00:02]}  Rb3 {[%clk 0:00:03]} 57. Ra5 {[%clk 0:00:03]}  Kd8 {[%clk 0:00:03]} 58. Rb7 {[%clk 0:00:04]}  Rb2+ {[%clk 0:00:03]} 59. Kc3 {[%clk 0:00:04]}  Rb3+ {[%clk 0:00:03]} 60. Kc2 {[%clk 0:00:05]}  Rb4 {[%clk 0:00:04]} 61. c6 {[%clk 0:00:04]}  Rc4+ {[%clk 0:00:04]} 62. Kd3 {[%clk 0:00:05]}  Rxh4 {[%clk 0:00:04]} 63. Ra1 {[%clk 0:00:03]}  Rh3+ {[%clk 0:00:05]} 64. Kd4 {[%clk 0:00:03]}  Rh4+ {[%clk 0:00:05]} 65. Kc3 {[%clk 0:00:03]}  Rh3+ {[%clk 0:00:06]} 66. Kb4 {[%clk 0:00:04]}  Rh4+ {[%clk 0:00:06]} 67. Kc3 {[%clk 0:00:04]}  Rc4+ {[%clk 0:00:06]} 68. Kd3 {[%clk 0:00:05]}  Rc5 {[%clk 0:00:07]} 69. Kd4 {[%clk 0:00:05]}  Rd5+ {[%clk 0:00:07]} 70. Ke4 {[%clk 0:00:06]}  Rc5 {[%clk 0:00:06]} 71. Kd4 {[%clk 0:00:06]}  Rd5+ {[%clk 0:00:06]} 72. Ke4 {[%clk 0:00:07]}  h4 {[%clk 0:00:06]} 73. Rh1 {[%clk 0:00:06]}  h3 {[%clk 0:00:07]} 74. Rxh3 {[%clk 0:00:06]}  Rxe5+ {[%clk 0:00:03]} 75. Kxe5 {[%clk 0:00:06]}  Bxh3 {[%clk 0:00:03]} 76. Rxf7 {[%clk 0:00:06]}  Bf5 {[%clk 0:00:04]} 77. Rg7 {[%clk 0:00:04]}  Bc2 {[%clk 0:00:02]} 78. Kd5 {[%clk 0:00:03]}  Bf5 {[%clk 0:00:02]} 79. Kc5 {[%clk 0:00:03]}  Ke8 {[%clk 0:00:03]} 80. Kd5 {[%clk 0:00:02]}  Kd8 {[%clk 0:00:03]} 81. Ke5 {[%clk 0:00:03]}  Ke8 {[%clk 0:00:03]} 82. Kf6 {[%clk 0:00:03]}  Kd8 {[%clk 0:00:04]} 83. Rb7 {[%clk 0:00:04]}  Ke8 {[%clk 0:00:04]} 84. Rh7 {[%clk 0:00:04]}  Kd8 {[%clk 0:00:04]} 85. Ke5 {[%clk 0:00:03]}  Ke8 {[%clk 0:00:04]} 86. Kd4 {[%clk 0:00:04]}  Kd8 {[%clk 0:00:05]} 87. Kc5 {[%clk 0:00:04]}  Ke8 {[%clk 0:00:05]} 88. Rg7 {[%clk 0:00:04]}  Kd8 {[%clk 0:00:06]} 89. Kb4 {[%clk 0:00:04]}  Ke8 {[%clk 0:00:06]} 90. Ka5 {[%clk 0:00:04]}  Bd3 {[%clk 0:00:04]} 91. Ka6 {[%clk 0:00:03]}  Nd6 {[%clk 0:00:04]} 92. c7 {[%clk 0:00:02]}  Bxb5+ {[%clk 0:00:03]} 93. Kxa7 {[%clk 0:00:03]}  Bd7 {[%clk 0:00:04]} 94. Rxg6 {[%clk 0:00:02]}  Nc8+ {[%clk 0:00:04]} 95. Kb8 {[%clk 0:00:03]}  Ne7 {[%clk 0:00:04]} 96. Rh6 {[%clk 0:00:03]}  Kf7 {[%clk 0:00:04]} 97. Rd6 {[%clk 0:00:03]}  Bf5 {[%clk 0:00:03]} 98. Rd1 {[%clk 0:00:03]}  Bg4 {[%clk 0:00:03]} 99. Rf1+ {[%clk 0:00:03]}  Ke8 {[%clk 0:00:03]} 100. Re1 {[%clk 0:00:03]}  Kf7 {[%clk 0:00:03]} 101. Rf1+ {[%clk 0:00:04]}  Ke8 {[%clk 0:00:03]} 102. Rg1 {[%clk 0:00:05]}  Bf5 {[%clk 0:00:03]} 103. Re1 {[%clk 0:00:05]}  Bg4 {[%clk 0:00:03]} 104. Kb7 {[%clk 0:00:05]}  Kf7 {[%clk 0:00:03]} 105. Rf1+ {[%clk 0:00:03]}  Ke8 {[%clk 0:00:03]} 106. Re1 {[%clk 0:00:03]}  Bc8+ {[%clk 0:00:03]} 107. Kb6 {[%clk 0:00:03]}  Bg4 {[%clk 0:00:04]} 108. Kc5 {[%clk 0:00:02]}  Kf7 {[%clk 0:00:04]} 109. Kd6 {[%clk 0:00:02]}  Nc8+ {[%clk 0:00:04]} 110. Kc6 {[%clk 0:00:03]}  Ne7+ {[%clk 0:00:05]} 111. Kb7 {[%clk 0:00:03]}  Bc8+ {[%clk 0:00:05]} 112. Kb8 {[%clk 0:00:03]}  Bg4 {[%clk 0:00:06]} 113. Ra1 {[%clk 0:00:03]}  Bf5 {[%clk 0:00:06]} 114. Ra7 {[%clk 0:00:03]}  Bc8 {[%clk 0:00:05]} 115. Ra4 {[%clk 0:00:02]}  Bh3 {[%clk 0:00:05]} 116. Rf4+ {[%clk 0:00:02]}  Ke8 {[%clk 0:00:05]} 117. Rf3 {[%clk 0:00:03]}  Bg4 {[%clk 0:00:05]} 118. Rg3 {[%clk 0:00:03]}  Bf5 {[%clk 0:00:05]} 119. Re3 {[%clk 0:00:03]}  Bg4 {[%clk 0:00:05]} 120. Kb7 {[%clk 0:00:03]}  Kf7 {[%clk 0:00:05]} 121. Re1 {[%clk 0:00:04]}  Bc8+ {[%clk 0:00:05]} 122. Kb6 {[%clk 0:00:04]}  Bg4 {[%clk 0:00:06]} 123. Kc5 {[%clk 0:00:05]}  Bc8 {[%clk 0:00:06]} 124. Rh1 {[%clk 0:00:04]}  Bg4 {[%clk 0:00:05]} 125. Rh7+ {[%clk 0:00:04]}  Ke8 {[%clk 0:00:05]} 126. Kd6 {[%clk 0:00:03]}  Nc8+ {[%clk 0:00:05]} 127. Ke5 {[%clk 0:00:04]}  Ne7 {[%clk 0:00:06]} 128. Rg7 {[%clk 0:00:02]}  Bh3 {[%clk 0:00:06]} 129. Rh7 {[%clk 0:00:03]}  Bg4 {[%clk 0:00:05]} 130. Rh1 {[%clk 0:00:03]}  Kd7 {[%clk 0:00:05]} 131. Rc1 {[%clk 0:00:04]}  Kc8 {[%clk 0:00:05]} 132. Kf6 {[%clk 0:00:03]}  Nd5+ {[%clk 0:00:05]} 133. Kg5 {[%clk 0:00:04]}  Bd7 {[%clk 0:00:05]} 134. Rc5 {[%clk 0:00:05]}  Nxc7 {[%clk 0:00:05]} 135. Rxc7+ {[%clk 0:00:06]}  Kxc7 {[%clk 0:00:05]} 1/2-1/2


[Site "https://www.chess.com"]

[Event "Titled Tuesday Blitz August 16 Late 2022"]
[White "Novikova, Galina"]
[Black "Burke, Paul"]
[WhiteFideId "4157095"]
[BlackFideId "2605767"]
[WhiteElo "1923"]
[BlackElo "1918"]
[Result "1-0"]
[Round "05"]
[TimeControl "180+1"]
[Date "2022.08.18"]
[WhiteClock "0:00:00"]
[BlackClock "0:00:00"]

1. e4 {[%clk 0:00:00]}  e5 {[%clk 0:00:00]} 2. Nf3 {[%clk 0:00:00]}  Nc6 {[%clk 0:00:00]} 3. Bc4 {[%clk 0:00:00]}  Be7 {[%clk 0:00:00]} 4. d4 {[%clk 0:00:00]}  exd4 {[%clk 0:00:00]} 5. c3 {[%clk 0:00:00]}  Nf6 {[%clk 0:00:00]} 6. e5 {[%clk 0:00:00]}  Ne4 {[%clk 0:00:00]} 7. Bd5 {[%clk 0:00:00]}  Nc5 {[%clk 0:00:00]} 8. cxd4 {[%clk 0:00:00]}  Ne6 {[%clk 0:00:00]} 9. Bb3 {[%clk 0:00:00]}  d5 {[%clk 0:00:00]} 10. Nc3 {[%clk 0:00:00]}  Bb4 {[%clk 0:00:00]} 11. O-O {[%clk 0:00:00]}  Bxc3 {[%clk 0:00:00]} 12. bxc3 {[%clk 0:00:00]}  O-O {[%clk 0:00:00]} 13. Bc2 {[%clk 0:00:00]}  f5 {[%clk 0:00:00]} 14. Bd2 {[%clk 0:00:00]}  h6 {[%clk 0:00:00]} 15. a4 {[%clk 0:00:00]}  g5 {[%clk 0:00:00]} 16. Qb1 {[%clk 0:00:00]}  Ng7 {[%clk 0:00:00]} 17. Ne1 {[%clk 0:00:00]}  Rb8 {[%clk 0:00:00]} 18. Nd3 {[%clk 0:00:00]}  b6 {[%clk 0:00:00]} 19. Nb4 {[%clk 0:00:00]}  Nxb4 {[%clk 0:00:00]} 20. cxb4 {[%clk 0:00:00]}  Be6 {[%clk 0:00:00]} 21. Bb3 {[%clk 0:00:00]}  c6 {[%clk 0:00:00]} 22. Qc2 {[%clk 0:00:00]}  Rc8 {[%clk 0:00:00]} 23. a5 {[%clk 0:00:00]}  Qe8 {[%clk 0:00:00]} 24. axb6 {[%clk 0:00:00]}  axb6 {[%clk 0:00:00]} 25. Ra7 {[%clk 0:00:00]}  c5 {[%clk 0:00:00]} 26. bxc5 {[%clk 0:00:00]}  bxc5 {[%clk 0:00:00]} 27. dxc5 {[%clk 0:00:00]}  Qh5 {[%clk 0:00:00]} 28. Bb4 {[%clk 0:00:00]}  Rfe8 {[%clk 0:00:00]} 29. Qd1 {[%clk 0:00:00]}  Red8 {[%clk 0:00:00]} 30. Qxh5 {[%clk 0:00:00]}  Nxh5 {[%clk 0:00:00]} 31. g3 {[%clk 0:00:00]}  f4 {[%clk 0:00:00]} 32. Rc1 {[%clk 0:00:00]}  f3 {[%clk 0:00:00]} 33. c6 {[%clk 0:00:00]} 1-0


[Site "https://www.chess.com"]

[Event "Titled Tuesday Blitz August 16 Late 2022"]
[White "Nozdrachev, Leonid"]
[Black "Rytenko, Vsevolod"]
[WhiteFideId "24113433"]
[BlackFideId "14133040"]
[WhiteElo "2100"]
[BlackElo "2120"]
[Result "1-0"]
[Round "05"]
[TimeControl "180+1"]
[Date "2022.08.18"]
[WhiteClock "0:00:00"]
[BlackClock "0:00:00"]

1. e4 {[%clk 0:00:00]}  c5 {[%clk 0:00:00]} 2. c3 {[%clk 0:00:00]}  Nf6 {[%clk 0:00:00]} 3. e5 {[%clk 0:00:00]}  Nd5 {[%clk 0:00:00]} 4. d4 {[%clk 0:00:00]}  cxd4 {[%clk 0:00:00]} 5. Nf3 {[%clk 0:00:00]}  Nc6 {[%clk 0:00:00]} 6. Bc4 {[%clk 0:00:00]}  Nb6 {[%clk 0:00:00]} 7. Bb3 {[%clk 0:00:00]}  d5 {[%clk 0:00:00]} 8. exd6 {[%clk 0:00:00]}  Qxd6 {[%clk 0:00:00]} 9. O-O {[%clk 0:00:00]}  Be6 {[%clk 0:00:00]} 10. Bxe6 {[%clk 0:00:00]}  Qxe6 {[%clk 0:00:00]} 11. Nxd4 {[%clk 0:00:00]}  Nxd4 {[%clk 0:00:00]} 12. Qxd4 {[%clk 0:00:00]}  Rd8 {[%clk 0:00:00]} 13. Qe3 {[%clk 0:00:00]}  Qxe3 {[%clk 0:00:00]} 14. Bxe3 {[%clk 0:00:00]}  e6 {[%clk 0:00:00]} 15. Nd2 {[%clk 0:00:00]}  Nd5 {[%clk 0:00:00]} 16. Bxa7 {[%clk 0:00:00]}  b6 {[%clk 0:00:00]} 17. Nc4 {[%clk 0:00:00]}  Ra8 {[%clk 0:00:00]} 18. Bxb6 {[%clk 0:00:00]}  Rc8 {[%clk 0:00:00]} 19. b3 {[%clk 0:00:00]}  Rxc4 {[%clk 0:00:00]} 20. bxc4 {[%clk 0:00:00]}  Nxb6 {[%clk 0:00:00]} 21. Rfb1 {[%clk 0:00:00]}  Bc5 {[%clk 0:00:00]} 22. Rb5 {[%clk 0:00:00]}  Nd7 {[%clk 0:00:00]} 23. a4 {[%clk 0:00:00]}  Ke7 {[%clk 0:00:00]} 24. a5 {[%clk 0:00:00]}  Ra8 {[%clk 0:00:00]} 25. Rb7 {[%clk 0:00:00]}  Ra7 {[%clk 0:00:00]} 26. Rxa7 {[%clk 0:00:00]}  Bxa7 {[%clk 0:00:00]} 27. Rb1 {[%clk 0:00:00]}  Nc5 {[%clk 0:00:00]} 28. Kf1 {[%clk 0:00:00]}  Kd6 {[%clk 0:00:00]} 29. Ke2 {[%clk 0:00:00]}  Kc6 {[%clk 0:00:00]} 30. Rb5 {[%clk 0:00:00]}  Ne4 {[%clk 0:00:00]} 31. Rb3 {[%clk 0:00:00]}  Nd6 {[%clk 0:00:00]} 32. a6 {[%clk 0:00:00]}  Bb6 {[%clk 0:00:00]} 33. Rxb6+ {[%clk 0:00:00]}  Kxb6 {[%clk 0:00:00]} 34. c5+ {[%clk 0:00:00]}  Kxa6 {[%clk 0:00:00]} 35. cxd6 {[%clk 0:00:00]}  Kb6 {[%clk 0:00:00]} 36. c4 {[%clk 0:00:00]}  Kc6 {[%clk 0:00:00]} 37. c5 {[%clk 0:00:00]}  e5 {[%clk 0:00:00]} 38. g4 {[%clk 0:00:00]}  f6 {[%clk 0:00:00]} 39. h4 {[%clk 0:00:00]}  g6 {[%clk 0:00:00]} 40. h5 {[%clk 0:00:00]}  f5 {[%clk 0:00:00]} 41. gxf5 {[%clk 0:00:00]}  gxf5 {[%clk 0:00:00]} 42. Kd3 {[%clk 0:00:00]}  Kd7 {[%clk 0:00:00]} 43. Kc3 {[%clk 0:00:00]}  Ke6 {[%clk 0:00:00]} 44. Kc4 {[%clk 0:00:00]}  f4 {[%clk 0:00:00]} 45. f3 {[%clk 0:00:00]}  h6 {[%clk 0:00:00]} 46. Kd3 {[%clk 0:00:00]} 1-0


[Site "https://www.chess.com"]

[Event "Titled Tuesday Blitz August 16 Late 2022"]
[White "Oparin, Grigoriy"]
[Black "Rios Escobar, Adan"]
[WhiteFideId "24125890"]
[BlackFideId "3403645"]
[WhiteElo "2639"]
[BlackElo "2440"]
[Result "1-0"]
[Round "05"]
[TimeControl "180+1"]
[Date "2022.08.16"]
[WhiteClock "0:00:13"]
[BlackClock "0:00:02"]

1. c4 {[%clk 0:03:00]}  Nf6 {[%clk 0:02:59]} 2. Nc3 {[%clk 0:03:01]}  g6 {[%clk 0:02:59]} 3. e4 {[%clk 0:03:01]}  d6 {[%clk 0:02:59]} 4. d4 {[%clk 0:03:01]}  Bg7 {[%clk 0:03:00]} 5. h4 {[%clk 0:03:01]}  h5 {[%clk 0:02:50]} 6. f3 {[%clk 0:02:58]}  Nc6 {[%clk 0:02:39]} 7. Nge2 {[%clk 0:02:54]}  O-O {[%clk 0:02:38]} 8. Bg5 {[%clk 0:02:53]}  a6 {[%clk 0:02:35]} 9. Qd2 {[%clk 0:02:53]}  Na5 {[%clk 0:02:29]} 10. Ng3 {[%clk 0:02:48]}  b5 {[%clk 0:02:27]} 11. cxb5 {[%clk 0:02:48]}  axb5 {[%clk 0:02:26]} 12. Bxb5 {[%clk 0:02:49]}  Nb3 {[%clk 0:02:26]} 13. Qd1 {[%clk 0:02:44]}  Nxa1 {[%clk 0:02:26]} 14. Qxa1 {[%clk 0:02:45]}  Ba6 {[%clk 0:02:17]} 15. Bxa6 {[%clk 0:02:43]}  Rxa6 {[%clk 0:02:18]} 16. O-O {[%clk 0:02:41]}  Qa8 {[%clk 0:02:10]} 17. Nge2 {[%clk 0:02:41]}  Rb8 {[%clk 0:02:07]} 18. Qc1 {[%clk 0:02:38]}  Qb7 {[%clk 0:02:05]} 19. b3 {[%clk 0:02:38]}  Qa7 {[%clk 0:02:00]} 20. Kh1 {[%clk 0:02:37]}  c5 {[%clk 0:01:58]} 21. d5 {[%clk 0:02:32]}  Kf8 {[%clk 0:01:44]} 22. Qc2 {[%clk 0:02:30]}  Nd7 {[%clk 0:01:41]} 23. a4 {[%clk 0:02:26]}  Ne5 {[%clk 0:01:31]} 24. Nb5 {[%clk 0:02:24]}  Qd7 {[%clk 0:01:29]} 25. Nec3 {[%clk 0:02:19]}  c4 {[%clk 0:01:26]} 26. Rb1 {[%clk 0:01:45]}  cxb3 {[%clk 0:01:22]} 27. Rxb3 {[%clk 0:01:46]}  Rc8 {[%clk 0:01:21]} 28. Qe2 {[%clk 0:01:37]}  Nc4 {[%clk 0:01:15]} 29. Rb4 {[%clk 0:01:25]}  Nb6 {[%clk 0:01:03]} 30. Nd4 {[%clk 0:01:25]}  Nc4 {[%clk 0:00:25]} 31. Nc6 {[%clk 0:01:20]}  Bxc3 {[%clk 0:00:16]} 32. Rxc4 {[%clk 0:01:11]}  Raxc6 {[%clk 0:00:16]} 33. dxc6 {[%clk 0:01:08]}  Rxc6 {[%clk 0:00:17]} 34. Qd3 {[%clk 0:00:46]}  Be5 {[%clk 0:00:12]} 35. Be3 {[%clk 0:00:37]}  Qb7 {[%clk 0:00:11]} 36. Rxc6 {[%clk 0:00:30]}  Qxc6 {[%clk 0:00:12]} 37. f4 {[%clk 0:00:30]}  Bf6 {[%clk 0:00:09]} 38. a5 {[%clk 0:00:27]}  Qa4 {[%clk 0:00:08]} 39. a6 {[%clk 0:00:26]}  Bxh4 {[%clk 0:00:06]} 40. Kh2 {[%clk 0:00:23]}  Bf6 {[%clk 0:00:04]} 41. a7 {[%clk 0:00:23]}  Kg7 {[%clk 0:00:04]} 42. Qd5 {[%clk 0:00:18]}  e6 {[%clk 0:00:04]} 43. a8=Q {[%clk 0:00:18]}  Qc2 {[%clk 0:00:01]} 44. Qd2 {[%clk 0:00:19]}  Qc4 {[%clk 0:00:01]} 45. Qb7 {[%clk 0:00:17]}  Qf1 {[%clk 0:00:01]} 46. Qxd6 {[%clk 0:00:13]}  h4 {[%clk 0:00:01]} 47. Qxe6 {[%clk 0:00:12]}  Qe2 {[%clk 0:00:01]} 48. Qexf7+ {[%clk 0:00:12]}  Kh6 {[%clk 0:00:02]} 49. Qh7# {[%clk 0:00:13]} 1-0


[Site "https://www.chess.com"]

[Event "Titled Tuesday Blitz August 16 Late 2022"]
[White "Pakleza, Zbigniew"]
[Black "Grischuk, Alexander"]
[WhiteFideId "1119290"]
[BlackFideId "4126025"]
[WhiteElo "2411"]
[BlackElo "2762"]
[Result "0-1"]
[Round "05"]
[TimeControl "180+1"]
[Date "2022.08.16"]
[WhiteClock "0:00:01"]
[BlackClock "0:00:04"]

1. d4 {[%clk 0:03:00]}  Nf6 {[%clk 0:02:59]} 2. Nf3 {[%clk 0:03:00]}  d5 {[%clk 0:02:57]} 3. Bf4 {[%clk 0:03:00]}  c5 {[%clk 0:02:57]} 4. c3 {[%clk 0:03:01]}  Qb6 {[%clk 0:02:54]} 5. Qb3 {[%clk 0:03:00]}  Nc6 {[%clk 0:02:50]} 6. Nbd2 {[%clk 0:02:59]}  cxd4 {[%clk 0:02:14]} 7. Qxb6 {[%clk 0:02:59]}  axb6 {[%clk 0:02:13]} 8. Nxd4 {[%clk 0:02:59]}  Nxd4 {[%clk 0:01:55]} 9. cxd4 {[%clk 0:03:00]}  e6 {[%clk 0:01:53]} 10. e3 {[%clk 0:02:47]}  Bd7 {[%clk 0:01:54]} 11. Bd3 {[%clk 0:02:43]}  Bc6 {[%clk 0:01:53]} 12. Ke2 {[%clk 0:02:40]}  Nh5 {[%clk 0:01:42]} 13. Be5 {[%clk 0:02:36]}  f6 {[%clk 0:01:42]} 14. Bc7 {[%clk 0:02:33]}  g6 {[%clk 0:01:17]} 15. Bxb6 {[%clk 0:02:33]}  Bd6 {[%clk 0:01:16]} 16. g3 {[%clk 0:02:18]}  e5 {[%clk 0:01:10]} 17. Rhc1 {[%clk 0:02:03]}  e4 {[%clk 0:01:08]} 18. Bc2 {[%clk 0:02:02]}  f5 {[%clk 0:01:07]} 19. Bc5 {[%clk 0:01:43]}  Bc7 {[%clk 0:01:00]} 20. a4 {[%clk 0:01:40]}  g5 {[%clk 0:00:59]} 21. b4 {[%clk 0:01:11]}  f4 {[%clk 0:00:59]} 22. Bb3 {[%clk 0:01:03]}  Nf6 {[%clk 0:00:58]} 23. b5 {[%clk 0:00:36]}  Bd7 {[%clk 0:00:57]} 24. Be7 {[%clk 0:00:36]}  f3+ {[%clk 0:00:57]} 25. Ke1 {[%clk 0:00:32]}  Kxe7 {[%clk 0:00:57]} 26. Rxc7 {[%clk 0:00:32]}  b6 {[%clk 0:00:57]} 27. Rac1 {[%clk 0:00:27]}  Kd6 {[%clk 0:00:43]} 28. Rb7 {[%clk 0:00:22]}  Rhb8 {[%clk 0:00:42]} 29. Rcc7 {[%clk 0:00:21]}  Be8 {[%clk 0:00:12]} 30. Rg7 {[%clk 0:00:13]}  Rxb7 {[%clk 0:00:09]} 31. Rxb7 {[%clk 0:00:14]}  Nd7 {[%clk 0:00:09]} 32. Nb1 {[%clk 0:00:10]}  Bf7 {[%clk 0:00:08]} 33. Nc3 {[%clk 0:00:09]}  Be6 {[%clk 0:00:09]} 34. Kd2 {[%clk 0:00:08]}  h5 {[%clk 0:00:09]} 35. Kc2 {[%clk 0:00:04]}  h4 {[%clk 0:00:09]} 36. Kb2 {[%clk 0:00:05]}  hxg3 {[%clk 0:00:07]} 37. hxg3 {[%clk 0:00:06]}  Rh8 {[%clk 0:00:07]} 38. Ra7 {[%clk 0:00:04]}  Rh2 {[%clk 0:00:07]} 39. Nd1 {[%clk 0:00:05]}  Nf6 {[%clk 0:00:06]} 40. a5 {[%clk 0:00:04]}  bxa5 {[%clk 0:00:03]} 41. Ra6+ {[%clk 0:00:05]}  Ke7 {[%clk 0:00:03]} 42. b6 {[%clk 0:00:05]}  Bc8 {[%clk 0:00:03]} 43. b7 {[%clk 0:00:04]}  Bxb7 {[%clk 0:00:03]} 44. Ra7 {[%clk 0:00:05]}  Ng4 {[%clk 0:00:03]} 45. Rxb7+ {[%clk 0:00:06]}  Kd6 {[%clk 0:00:03]} 46. Rb6+ {[%clk 0:00:06]}  Kc7 {[%clk 0:00:04]} 47. Rg6 {[%clk 0:00:05]}  Nxf2 {[%clk 0:00:04]} 48. Nxf2 {[%clk 0:00:06]}  Rxf2+ {[%clk 0:00:04]} 49. Kc3 {[%clk 0:00:07]}  Re2 {[%clk 0:00:05]} 50. Bxd5 {[%clk 0:00:06]}  Rxe3+ {[%clk 0:00:05]} 51. Kd2 {[%clk 0:00:05]}  Rd3+ {[%clk 0:00:06]} 52. Ke1 {[%clk 0:00:05]}  Rxd4 {[%clk 0:00:06]} 53. Bf7 {[%clk 0:00:02]}  e3 {[%clk 0:00:05]} 54. Rf6 {[%clk 0:00:02]}  g4 {[%clk 0:00:04]} 55. Bh5 {[%clk 0:00:02]}  e2 {[%clk 0:00:04]} 56. Kf2 {[%clk 0:00:01]}  Rd1 {[%clk 0:00:04]} 57. Rf7+ {[%clk 0:00:01]}  Kd6 {[%clk 0:00:04]} 58. Rxf3 {[%clk 0:00:01]}  gxf3 {[%clk 0:00:03]} 59. Kxf3 {[%clk 0:00:01]}  e1=Q {[%clk 0:00:04]} 0-1


[Site "https://www.chess.com"]

[Event "Titled Tuesday Blitz August 16 Late 2022"]
[White "Proudian, Armen"]
[Black "Leiva, Gianmarco"]
[WhiteFideId "2130734"]
[BlackFideId "3804399"]
[WhiteElo "2380"]
[BlackElo "2323"]
[Result "0-1"]
[Round "05"]
[TimeControl "180+1"]
[Date "2022.08.18"]
[WhiteClock "0:00:00"]
[BlackClock "0:00:00"]

1. e4 {[%clk 0:00:00]}  c5 {[%clk 0:00:00]} 2. Nf3 {[%clk 0:00:00]}  d6 {[%clk 0:00:00]} 3. d4 {[%clk 0:00:00]}  cxd4 {[%clk 0:00:00]} 4. Nxd4 {[%clk 0:00:00]}  Nf6 {[%clk 0:00:00]} 5. Nc3 {[%clk 0:00:00]}  a6 {[%clk 0:00:00]} 6. Be3 {[%clk 0:00:00]}  e5 {[%clk 0:00:00]} 7. Nb3 {[%clk 0:00:00]}  Be7 {[%clk 0:00:00]} 8. Qd2 {[%clk 0:00:00]}  Ng4 {[%clk 0:00:00]} 9. g3 {[%clk 0:00:00]}  Nxe3 {[%clk 0:00:00]} 10. Qxe3 {[%clk 0:00:00]}  O-O {[%clk 0:00:00]} 11. O-O-O {[%clk 0:00:00]}  Be6 {[%clk 0:00:00]} 12. f4 {[%clk 0:00:00]}  Nd7 {[%clk 0:00:00]} 13. Kb1 {[%clk 0:00:00]}  f6 {[%clk 0:00:00]} 14. f5 {[%clk 0:00:00]}  Bf7 {[%clk 0:00:00]} 15. g4 {[%clk 0:00:00]}  Rc8 {[%clk 0:00:00]} 16. h4 {[%clk 0:00:00]}  h6 {[%clk 0:00:00]} 17. Nd5 {[%clk 0:00:00]}  Rc6 {[%clk 0:00:00]} 18. Be2 {[%clk 0:00:00]}  Nb6 {[%clk 0:00:00]} 19. Nxe7+ {[%clk 0:00:00]}  Qxe7 {[%clk 0:00:00]} 20. Rdg1 {[%clk 0:00:00]}  Rfc8 {[%clk 0:00:00]} 21. g5 {[%clk 0:00:00]}  Rxc2 {[%clk 0:00:00]} 22. gxh6 {[%clk 0:00:00]}  Na4 {[%clk 0:00:00]} 23. Rxg7+ {[%clk 0:00:00]}  Kh8 {[%clk 0:00:00]} 24. Qg3 {[%clk 0:00:00]}  Rxb2+ {[%clk 0:00:00]} 25. Ka1 {[%clk 0:00:00]}  Qf8 {[%clk 0:00:00]} 26. Rg1 {[%clk 0:00:00]}  Rxe2 {[%clk 0:00:00]} 27. Qg4 {[%clk 0:00:00]}  Rcc2 {[%clk 0:00:00]} 28. h7 {[%clk 0:00:00]}  Rxa2+ {[%clk 0:00:00]} 29. Kb1 {[%clk 0:00:00]}  Nc3+ {[%clk 0:00:00]} 30. Kc1 {[%clk 0:00:00]}  Rac2# {[%clk 0:00:00]} 0-1


[Site "https://www.chess.com"]